fUSD/lending_fUSD_20251215
["ID","MTS","AMOUNT","RATE_DAILY","PERIOD"]
[398525307,1765787442454,-500.0,0.00016712,2]
[398525308,1765787442464,-1257.0,0.00016712,2]
[398525309,1765787442474,-556.0,0.00016712,2]
[398525310,1765787442483,-150.0,0.00016712,2]
[398525311,1765787442493,-326.53505463,0.00016712,2]
[398525312,1765787442502,-500.0,0.00016712,2]
[398525313,1765787442511,-1457.41,0.00016712,2]
[398525314,1765787442520,-504.34774283,0.00016712,2]
[398525315,1765787442530,-238.26159997,0.00016712,2]
[398525316,1765787442539,-3916.0,0.00016716,2]
[398525317,1765787442548,-150.0,0.00016744,2]
[398525318,1765787442558,-150.0,0.00016744,2]
[398525319,1765787442567,-5531.53495499,0.00016757,2]
[398525320,1765787442576,-150.0,0.00016774,2]
[398525321,1765787442586,-3916.0,0.00016808,2]
[398525322,1765787442595,-12734.00084286,0.0001683,2]
[398525323,1765787442604,-150.0,0.00016836,2]
[398525324,1765787442613,-500.0,0.00016836,2]
[398525325,1765787442623,-500.0,0.00016836,2]
[398525326,1765787442632,-150.0,0.00016836,2]
[398525327,1765787442642,-150.0,0.00016836,2]
[398525328,1765787442651,-155.42907447,0.00016836,2]
[398525329,1765787442663,-500.0,0.00016849,2]
[398525330,1765787442672,-500.0,0.00016849,2]
[398525331,1765787442683,-300.0,0.00016849,2]
[398525332,1765787442692,-150.0,0.00016849,2]
[398525333,1765787442703,-500.0,0.00016849,2]
[398525334,1765787442713,-1257.0,0.00016849,2]
[398525335,1765787442723,-556.0,0.00016849,2]
[398525336,1765787442732,-200.0,0.00016849,2]
[398525337,1765787442741,-200.0,0.00016849,2]
[398525338,1765787442750,-200.0,0.00016864,2]
[398525339,1765787442759,-2426.0,0.00016869,2]
[398525340,1765787442768,-611.0,0.00016869,2]
[398525341,1765787442777,-1607.0,0.00016869,2]
[398525342,1765787442786,-185.0,0.00016895,2]
[398525343,1765787442795,-5125.0,0.00016895,2]
[398525344,1765787442804,-10000.0,0.000169,2]
[398525345,1765787442813,-1236.89312992,0.000169,2]
[398525346,1765787442822,-3663.23646454,0.000169,2]
[398525347,1765787442831,-3645.28727979,0.000169,2]
[398525348,1765787442840,-421.06907438,0.00016911,2]
[398525349,1765787442849,-9999.99,0.00016922,2]
[398525350,1765787442860,-481.25235646,0.00016923,2]
[398525351,1765787442871,-152.37400623,0.00016965,2]
[398525352,1765787442880,-589.76,0.00016972,2]
[398525353,1765787442889,-169.17840548,0.00016973,2]
[398525354,1765787442898,-500.0,0.00016973,2]
[398525356,1765787442907,-223.90146234,0.00016973,2]
[398525357,1765787442918,-500.81562554,0.00016973,2]
[398525358,1765787442926,-167.01915454,0.00016973,2]
[398525359,1765787442935,-500.38142603,0.00016973,2]
[398525360,1765787442944,-500.0,0.00016973,2]
[398525361,1765787442953,-500.0,0.00016973,2]
[398525362,1765787442962,-500.0,0.00016973,2]
[398525363,1765787442972,-500.0,0.00016973,2]
[398525364,1765787442981,-534.13325228,0.00016973,2]
[398525365,1765787442990,-500.0,0.00016973,2]
[398525366,1765787442999,-500.0,0.00016973,2]
[398525369,1765787443387,-500.0,0.00016973,2]
[398525370,1765787443396,-500.0,0.00016973,2]
[398525371,1765787443405,-500.0,0.00016973,2]
[398525372,1765787443415,-500.0,0.00016973,2]
[398525373,1765787443426,-500.0,0.00016973,2]
[398525374,1765787443436,-500.0,0.00016973,2]
[398525375,1765787443445,-500.0,0.00016973,2]
[398525376,1765787443455,-515.49595078,0.00016973,2]
[398525377,1765787443464,-500.0,0.00016973,2]
[398525378,1765787443474,-500.0,0.00016973,2]
[398525379,1765787443483,-500.0,0.00016973,2]
[398525381,1765787443492,-500.0,0.00016973,2]
[398525382,1765787443501,-250.59182654,0.00016973,2]
[398525383,1765787443511,-500.0,0.00016973,2]
[398525384,1765787443521,-500.0,0.00016973,2]
[398525385,1765787443531,-500.0,0.00016973,2]
[398525386,1765787443540,-500.0,0.00016973,2]
[398525387,1765787443549,-502.19695313,0.00016973,2]
[398525388,1765787443559,-500.0,0.00016973,2]
[398525389,1765787443568,-500.0,0.00016973,2]
[398525390,1765787443577,-500.0,0.00016973,2]
[398525391,1765787443587,-500.0,0.00016973,2]
[398525392,1765787443596,-500.0,0.00016973,2]
[398525393,1765787443606,-315.21795353,0.00016973,2]
[398525394,1765787443615,-535.77849194,0.00016973,2]
[398525395,1765787443625,-150.0,0.00016973,2]
[398525397,1765787443634,-254.44455269,0.00016973,2]
[398525399,1765787443643,-500.0,0.00016973,2]
[398525401,1765787443653,-160.97425744,0.00016973,2]
[398525403,1765787443663,-154.0,0.00016979,2]
[398525404,1765787443673,-152.0,0.00016979,2]
[398525405,1765787443682,-154.0,0.00016979,2]
[398525406,1765787443691,-1500.0,0.00016983,2]
[398525407,1765787443700,-1500.0,0.00016983,2]
[398525408,1765787443710,-1500.0,0.00016983,2]
[398525409,1765787443719,-1500.0,0.00016983,2]
[398525410,1765787443728,-1500.0,0.00016983,2]
[398525411,1765787443737,-1500.0,0.00016983,2]
[398525412,1765787443746,-1500.0,0.00016983,5]
[398525413,1765787443756,-527.57313586,0.00016983,2]
[398525414,1765787443765,-151.0,0.00016985,2]
[398525415,1765787443774,-500.0,0.00016986,2]
[398525416,1765787443783,-500.0,0.00016986,2]
[398525417,1765787443792,-500.0,0.00016986,2]
[398525418,1765787443801,-1257.0,0.00016986,2]
[398525419,1765787443811,-556.0,0.00016986,2]
[398525420,1765787443820,-1457.41,0.00016986,2]
[398525421,1765787443829,-600.0,0.00016986,2]
[398525422,1765787443839,-150.0,0.00016986,2]
[398525423,1765787443848,-150.0,0.00016986,2]
[398525424,1765787443857,-150.0,0.00016986,2]
[398525425,1765787443867,-150.0,0.00016986,2]
[398525426,1765787443877,-215.07380001,0.00016986,2]
[398525427,1765787443886,-150.0,0.00016986,2]
[398525428,1765787443896,-221.28365954,0.00016986,2]
[398525429,1765787443906,-154.80455544,0.00016986,2]
[398525430,1765787443915,-156.40675896,0.00016986,2]
[398525431,1765787443925,-156.03264287,0.00016986,2]
[398525432,1765787443934,-150.0,0.00016986,2]
[398525433,1765787443944,-53360.95,0.00016986,2]
[398525434,1765787443954,-1502.0,0.00016992,2]
[398525435,1765787443963,-151.0,0.00016993,2]
[398525436,1765787443973,-151.0,0.00016997,2]
[398525437,1765787443982,-1261.0,0.00016997,2]
[398525438,1765787443992,-589.0,0.00016997,2]
[398525439,1765787444001,-1196.0,0.00016997,2]
[398525440,1765787444011,-911.0,0.00016997,2]
[398525441,1765787444020,-200.77285261,0.00016999,2]
[398525442,1765787444030,-300.0,0.00016999,2]
[398525443,1765787444039,-589.76,0.00016999,2]
[398525444,1765787444050,-589.76,0.00016999,2]
[398525445,1765787444072,-589.76,0.00016999,2]
[398525446,1765787444082,-589.76,0.00016999,2]
[398525447,1765787444093,-589.76,0.00016999,2]
[398525448,1765787444102,-589.76,0.00016999,2]
[398525449,1765787444112,-589.76,0.00016999,2]
[398525450,1765787444122,-589.76,0.00016999,2]
[398525451,1765787444133,-589.76,0.00016999,2]
[398525452,1765787444143,-589.76,0.00016999,2]
[398525453,1765787444153,-589.76,0.00016999,2]
[398525454,1765787444162,-589.76,0.00016999,2]
[398525455,1765787444173,-589.9,0.00016999,2]
[398525456,1765787444183,-5036087.75083584,0.00017,2]
[398525458,1765787446041,-1.7e-07,0.00017,2]
[398525525,1765787446893,-184.43046034,0.0001598,2]
[398525527,1765787446903,-967.56953966,0.00016438,2]
[398525531,1765787446936,-249.70046034,0.00016438,2]
[398525533,1765787446946,-639.55365861,0.00016438,2]
[398525540,1765787446992,-466.62634139,0.00016438,2]
[398525542,1765787447002,-1703.09558281,0.00016869,2]
[398525606,1765787496641,526823.4914,0.00015617,2]
[398525607,1765787521470,300.0,0.00015715,2]
[398525612,1765787550586,2500.0,0.00015617,2]
[398525613,1765787554649,208.08070984,0.00015616,2]
[398525614,1765787581683,621.0,0.00015715,2]
[398525626,1765787701755,300.0,0.00015715,2]
[398525627,1765787701789,300.0,0.00015715,2]
[398525628,1765787701823,1200.0,0.00015715,2]
[398525629,1765787701856,284.0,0.00015715,2]
[398525637,1765787746837,164.8728054,0.00015616,2]
[398525644,1765787761519,300.0,0.00015715,2]
[398525645,1765787761612,300.0,0.00015715,2]
[398525721,1765787824159,300.0,0.00015715,2]
[398525742,1765787881364,300.0,0.00015715,2]
[398525748,1765787889227,212.85464346,0.00015616,2]
[398525762,1765787926688,-500.0,0.00015716,2]
[398525763,1765787926710,-81.61715505,0.00015716,2]
[398525764,1765787928923,-250.0,0.00015716,2]
[398525765,1765787930960,-168.38284495,0.00015716,2]
[398525766,1765787930983,-81.61715505,0.00015716,2]
[398525810,1765788004187,1200.0,0.00015715,2]
[398525811,1765788004218,300.0,0.00015715,2]
[398525812,1765788004260,300.0,0.00015715,2]
[398525813,1765788004734,281.0,0.00015715,2]
[398525844,1765788053316,5000.0,0.000157,2]
[398525853,1765788061644,300.0,0.00015715,2]
[398525879,1765788079241,5000.0,0.000157,2]
[398525885,1765788091305,5000.0,0.000157,2]
[398525889,1765788115957,5000.0,0.000157,2]
[398525890,1765788122768,300.0,0.00015715,2]
[398525891,1765788129183,5000.0,0.000157,2]
[398525925,1765788143978,5000.0,0.00015,2]
[398525927,1765788180720,3218.23,7.796e-05,2]
[398525928,1765788180911,3218.23,8.206e-05,2]
[398525929,1765788181106,3218.23,8.617e-05,2]
[398525930,1765788181307,3218.23,9.027e-05,2]
[398525931,1765788181507,3218.23,9.437e-05,2]
[398525932,1765788181705,3218.23,9.847e-05,2]
[398525933,1765788181902,3218.23,0.00010258,2]
[398525934,1765788182135,3218.23,0.00010668,2]
[398525935,1765788182335,3218.23,0.00011078,2]
[398525936,1765788182552,3218.23,0.00011489,2]
[398525937,1765788182754,3218.23,0.00011899,2]
[398525938,1765788182954,3218.23,0.00012309,2]
[398525939,1765788183154,3218.23,0.0001272,2]
[398525940,1765788183351,3218.23,0.0001313,2]
[398525941,1765788183543,3218.23,0.0001354,2]
[398525942,1765788183592,5000.0,0.000157,2]
[398525943,1765788183746,3218.23,0.0001395,2]
[398525944,1765788186979,3218.23,0.00014361,2]
[398525945,1765788187064,3218.23,0.00014771,2]
[398525946,1765788187149,3218.23,0.00015181,2]
[398525947,1765788187235,3218.23,0.00015592,2]
[398525948,1765788195309,5000.0,0.000157,2]
[398525952,1765788213417,4045.0,0.000157,2]
[398525953,1765788213470,212.85464346,0.00015616,2]
[398525974,1765788244476,445.08,0.00015626,2]
[398525979,1765788255671,5686.68,0.00015626,2]
[398525991,1765788302131,300.0,0.00015715,2]
[398525997,1765788320016,150.0,0.00015288,2]
[398525999,1765788323470,150.0,0.00015288,2]
[398526000,1765788324123,150.0,0.00015288,2]
[398526001,1765788327527,150.0,0.00015288,2]
[398526002,1765788330520,150.0,0.00015288,2]
[398526003,1765788330636,221.28365954,0.00015288,2]
[398526004,1765788330735,150.0,0.00015288,2]
[398526005,1765788334288,154.80455544,0.00015288,2]
[398526006,1765788339880,156.40675896,0.00015288,2]
[398526007,1765788341109,156.03264286,0.00015288,2]
[398526008,1765788346011,150.0,0.00015288,2]
[398526009,1765788361303,300.0,0.00015715,2]
[398526045,1765788421266,300.0,0.00015715,2]
[398526066,1765788447863,172.92,0.00012369,2]
[398526067,1765788448079,172.92,0.00013915,2]
[398526068,1765788448254,172.92,0.00015461,2]
[398526072,1765788461742,10000.01,0.00015461,2]
[398526073,1765788461772,2933.64,0.00015461,2]
[398526081,1765788488467,671.615379,7.945e-05,2]
[398526085,1765788494866,-194.38287821,0.00015716,2]
[398526087,1765788500393,-198.40680995,0.00015716,2]
[398526088,1765788500416,-64.90694244,0.00015716,2]
[398526089,1765788503151,-159.0930243,0.00015716,2]
[398526090,1765788503175,-40.94283701,0.00015716,2]
[398526106,1765788540421,463.3496137,0.00015616,2]
[398526107,1765788541359,300.0,0.00015715,2]
[398526108,1765788547430,2500.0,7.945e-05,2]
[398526115,1765788572222,654.684538,0.00015637,2]
[398526116,1765788572854,3432.13,0.00015485,2]
[398526124,1765788601380,300.0,0.00015715,2]
[398526125,1765788601554,300.0,0.00015715,2]
[398526126,1765788601595,1200.0,0.00015715,2]
[398526135,1765788632260,-468.97910059,0.00015716,2]
[398526136,1765788632271,-500.0,0.00015716,2]
[398526137,1765788632280,-517.08990196,0.00015716,2]
[398526138,1765788632290,-503.9543882,0.00015716,2]
[398526139,1765788632299,-500.0,0.00015716,2]
[398526140,1765788632308,-42.07806989,0.00015716,2]
[398526141,1765788632334,-460.55418131,0.00015716,2]
[398526142,1765788632344,-165.76157823,0.00015716,2]
[398526145,1765788632576,-334.23842177,0.00015716,2]
[398526146,1765788632586,-500.0,0.00015716,2]
[398526148,1765788632595,-167.65709845,0.00015716,2]
[398526161,1765788632776,-332.34290155,0.00015716,2]
[398526162,1765788632786,-500.0,0.00015716,2]
[398526163,1765788632794,-517.75026948,0.00015716,2]
[398526164,1765788632803,-500.0,0.00015716,2]
[398526165,1765788632813,-257.70951337,0.00015716,2]
[398526166,1765788632823,-500.0,0.00015716,2]
[398526167,1765788632832,-500.0,0.00015716,2]
[398526168,1765788632842,-500.0,0.00015716,2]
[398526169,1765788632851,-1532.76,0.00015716,2]
[398526170,1765788632860,-250.0,0.00015754,2]
[398526171,1765788632870,-166.71,0.0001587,2]
[398526172,1765788632879,-168.0,0.00015956,2]
[398526173,1765788632889,-1532.76,0.0001599,2]
[398526174,1765788632898,-166.0,0.00016,2]
[398526175,1765788632907,-458.29212712,0.00016063,2]
[398526176,1765788632917,-200.0,0.00016116,2]
[398526177,1765788632926,-300.0,0.00016237,2]
[398526178,1765788632935,-1502.0,0.00016237,2]
[398526179,1765788632943,-370.0,0.00016255,2]
[398526180,1765788632952,-1532.76,0.00016264,2]
[398526181,1765788632964,-248.08,0.00016272,2]
[398526182,1765788632973,-166.0,0.000163,2]
[398526183,1765788632982,-1217.27,0.000163,2]
[398526184,1765788632991,-151.25,0.000163,2]
[398526185,1765788633001,-1217.27,0.000163,2]
[398526186,1765788633010,-2487.5,0.000163,2]
[398526187,1765788633019,-178.16,0.000163,2]
[398526188,1765788633028,-392.0,0.00016342,2]
[398526189,1765788633038,-377.87957931,0.00016355,2]
[398526190,1765788633047,-374.0,0.00016369,2]
[398526191,1765788633055,-168.0,0.00016377,2]
[398526192,1765788633064,-339.0,0.00016381,2]
[398526193,1765788633073,-27927.13,0.00016381,2]
[398526194,1765788633082,-1199.71,0.00016381,2]
[398526195,1765788633092,-168.0,0.00016394,2]
[398526196,1765788633102,-4107.39890071,0.00016438,2]
[398526197,1765788633111,-7727.6,0.00016438,2]
[398526198,1765788633120,-464.12,0.00016438,2]
[398526199,1765788633129,-464.12,0.00016438,2]
[398526200,1765788633138,-464.12,0.00016438,2]
[398526201,1765788633147,-464.12,0.00016438,2]
[398526202,1765788633156,-464.18,0.00016438,2]
[398526203,1765788633165,-928.02,0.00016438,2]
[398526204,1765788633174,-464.12,0.00016438,2]
[398526205,1765788633184,-928.24,0.00016438,2]
[398526206,1765788633193,-464.18,0.00016438,2]
[398526207,1765788633202,-178.16,0.00016478,2]
[398526208,1765788633211,-1217.27,0.00016478,2]
[398526209,1765788633220,-1069.24,0.00016478,2]
[398526210,1765788633230,-5559.8897711,0.00016483,2]
[398526211,1765788633239,-4107.39890063,0.00016489,2]
[398526212,1765788633248,-151.0,0.0001649,2]
[398526213,1765788633257,-151.0,0.0001649,2]
[398526214,1765788633266,-151.0,0.0001649,2]
[398526215,1765788633276,-574.12855637,0.0001649,2]
[398526216,1765788633285,-200.0,0.0001649,2]
[398526217,1765788633294,-563.95177719,0.00016499,2]
[398526218,1765788633814,-249.87817541,0.00016499,2]
[398526219,1765788633852,-748.67,0.00016499,2]
[398526220,1765788633868,-748.67,0.00016499,2]
[398526221,1765788633877,-40722.21922944,0.000165,2]
[398526222,1765788633889,-2171.90204528,0.000165,2]
[398526223,1765788633900,-8449.74769976,0.000165,2]
[398526224,1765788633911,-19652.16601385,0.000165,2]
[398526225,1765788633922,-1091.80232096,0.000165,2]
[398526226,1765788634003,-822.10562034,0.000165,2]
[398526227,1765788638728,-546.95847503,0.00016333,2]
[398526228,1765788638744,-278.33302053,0.00016432,2]
[398526229,1765788638759,-500.0,0.00016432,2]
[398526230,1765788638775,-214.38107329,0.00016432,2]
[398526231,1765788638791,-92.69533115,0.00016432,2]
[398526232,1765788638815,-407.30466885,0.00016432,2]
[398526233,1765788638830,-188.18852018,0.00016432,2]
[398526234,1765788638852,-311.81147982,0.00016432,2]
[398526235,1765788638867,-500.0,0.00016432,2]
[398526236,1765788638883,-500.0,0.00016432,2]
[398526237,1765788638898,-500.0,0.00016432,2]
[398526239,1765788638913,-500.0,0.00016432,2]
[398526240,1765788638929,-500.0,0.00016432,2]
[398526241,1765788638944,-500.0,0.00016432,2]
[398526242,1765788638960,-185.7031988,0.00016432,2]
[398526243,1765788638977,-500.0,0.00016432,2]
[398526244,1765788638993,-500.0,0.00016432,2]
[398526245,1765788639011,-500.0,0.00016432,2]
[398526246,1765788639027,-500.0,0.00016432,2]
[398526247,1765788639043,-500.0,0.00016432,2]
[398526248,1765788639057,-500.0,0.00016432,2]
[398526249,1765788639072,-500.0,0.00016432,2]
[398526250,1765788639087,-500.0,0.00016432,2]
[398526251,1765788639102,-500.0,0.00016432,2]
[398526252,1765788639117,-500.0,0.00016432,2]
[398526253,1765788639132,-500.0,0.00016432,2]
[398526254,1765788639146,-500.0,0.00016432,2]
[398526255,1765788639160,-500.0,0.00016432,2]
[398526256,1765788639175,-500.0,0.00016432,2]
[398526257,1765788639188,-500.0,0.00016432,2]
[398526258,1765788639204,-500.0,0.00016432,2]
[398526259,1765788639217,-500.0,0.00016438,2]
[398526260,1765788639232,-316.86437097,0.00016438,2]
[398526261,1765788639245,-500.0,0.00016438,2]
[398526262,1765788639261,-500.0,0.00016438,2]
[398526263,1765788639276,-500.0,0.00016438,2]
[398526264,1765788639292,-500.0,0.00016438,2]
[398526265,1765788639307,-89917.69301177,0.000165,2]
[398526266,1765788639326,-89899.99999999,0.000165,2]
[398526267,1765788639344,-597.61849702,0.000165,2]
[398526268,1765788639464,-382.11389132,0.000165,2]
[398526269,1765788639482,-67617.43159549,0.000165,2]
[398526270,1765788639499,-53507.58380998,0.000165,2]
[398526271,1765788639517,-2416.06200004,0.000165,2]
[398526272,1765788639585,-10999.09543311,0.000165,2]
[398526273,1765788639603,-382.33520524,0.000165,2]
[398526274,1765788639620,-457.2794888,0.000165,2]
[398526275,1765788640407,-717.61250113,0.000165,2]
[398526276,1765788640424,-357.4999999,0.000165,2]
[398526277,1765788640442,-1540.0,0.000165,2]
[398526278,1765788640460,-913.53,0.000165,2]
[398526279,1765788640483,-831.34206,0.000165,2]
[398526280,1765788640498,-76887.49434162,0.000165,2]
[398526281,1765788640512,-168.0,0.00016538,2]
[398526282,1765788640525,-1532.76,0.00016538,2]
[398526283,1765788640543,-4107.39890063,0.00016541,2]
[398526284,1765788640557,-201.0,0.00016541,2]
[398526285,1765788640572,-339.0,0.00016588,2]
[398526286,1765788640585,-4107.39890063,0.00016592,2]
[398526287,1765788640601,-166.0,0.000166,2]
[398526288,1765788640614,-543.7,0.0001663,2]
[398526289,1765788640629,-4107.39890063,0.00016643,2]
[398526290,1765788640642,-2173.26500343,0.0001666,2]
[398526291,1765788640656,-4107.39890063,0.00016695,2]
[398526292,1765788640669,-218.95227974,0.00016699,2]
[398526293,1765788640683,-500.0,0.00016699,2]
[398526294,1765788640696,-150.0,0.00016699,2]
[398526295,1765788640709,-500.0,0.00016699,2]
[398526296,1765788640723,-150.0,0.00016699,2]
[398526297,1765788640736,-150.0,0.00016699,2]
[398526298,1765788640750,-500.0,0.00016699,2]
[398526299,1765788640764,-150.0,0.00016699,2]
[398526300,1765788640776,-150.0,0.00016699,2]
[398526301,1765788640790,-500.0,0.00016699,2]
[398526302,1765788640803,-150.0,0.00016699,2]
[398526303,1765788640816,-500.0,0.00016699,2]
[398526304,1765788640830,-531.0,0.00016699,2]
[398526305,1765788640845,-150.0,0.00016699,2]
[398526306,1765788640858,-500.0,0.00016699,2]
[398526307,1765788640872,-979.0,0.00016699,2]
[398526308,1765788640885,-7614.39334348,0.000167,2]
[398526309,1765788640899,-1171.129,0.00016711,2]
[398526310,1765788640912,-150.0,0.0001672,2]
[398526311,1765788640926,-1000.0,0.00016724,2]
[398526312,1765788640939,-150.0,0.00016726,2]
[398526313,1765788640952,-1000.0,0.00016728,2]
[398526314,1765788640968,-300.0,0.00016729,2]
[398526315,1765788640981,-1000.0,0.00016729,2]
[398526317,1765788640994,-150.0,0.00016729,2]
[398526319,1765788641008,-339.0,0.0001673,2]
[398526321,1765788641022,-1000.0,0.00016733,2]
[398526322,1765788641035,-1000.0,0.00016733,2]
[398526323,1765788641053,-1000.0,0.00016733,2]
[398526324,1765788641066,-1000.0,0.00016743,2]
[398526325,1765788641079,-991.24217715,0.00016745,2]
[398526326,1765788641092,-1000.0,0.00016746,2]
[398526327,1765788641105,-1000.0,0.00016746,2]
[398526328,1765788641118,-4107.39890063,0.00016746,2]
[398526329,1765788641132,-1000.0,0.00016748,2]
[398526331,1765788642113,-150.0,0.00016749,2]
[398526332,1765788642164,-1000.0,0.00016754,2]
[398526333,1765788642186,-150.0,0.00016754,2]
[398526334,1765788642204,-1000.0,0.00016755,2]
[398526335,1765788642224,-1000.0,0.00016759,2]
[398526336,1765788642235,-1000.0,0.0001676,2]
[398526337,1765788642246,-150.0,0.00016761,2]
[398526338,1765788642257,-150.0,0.00016764,2]
[398526339,1765788642267,-150.0,0.00016765,2]
[398526340,1765788642276,-1000.0,0.00016766,2]
[398526341,1765788642295,-1000.0,0.00016777,2]
[398526342,1765788642304,-1000.0,0.00016781,2]
[398526343,1765788642313,-300.0,0.00016782,2]
[398526344,1765788642323,-150.0,0.00016783,2]
[398526345,1765788642332,-150.0,0.00016785,2]
[398526346,1765788642341,-1502.0,0.00016785,2]
[398526347,1765788642351,-1000.0,0.00016788,2]
[398526348,1765788642361,-1000.0,0.00016789,2]
[398526349,1765788642370,-1000.0,0.00016791,2]
[398526350,1765788642379,-300.0,0.00016792,2]
[398526351,1765788642388,-339.0,0.00016793,2]
[398526352,1765788642397,-1000.0,0.00016794,2]
[398526353,1765788642406,-1000.0,0.00016794,2]
[398526354,1765788642416,-150.0,0.00016797,2]
[398526355,1765788642425,-4107.39890063,0.00016797,2]
[398526356,1765788642434,-1000.0,0.00016799,2]
[398526357,1765788642443,-1000.0,0.00016802,2]
[398526358,1765788642455,-1000.0,0.00016802,2]
[398526359,1765788642464,-1000.0,0.00016802,2]
[398526360,1765788642473,-1000.0,0.00016805,2]
[398526361,1765788642482,-300.0,0.0001681,2]
[398526362,1765788642492,-1000.0,0.00016811,2]
[398526363,1765788642501,-1532.76,0.00016812,2]
[398526364,1765788642510,-1000.0,0.00016815,2]
[398526365,1765788642519,-150.0,0.00016816,2]
[398526366,1765788642528,-300.0,0.00016817,2]
[398526367,1765788642538,-1000.0,0.00016817,2]
[398526368,1765788642548,-1000.0,0.00016817,2]
[398526369,1765788642557,-1000.0,0.00016825,2]
[398526370,1765788642567,-150.0,0.00016827,2]
[398526371,1765788642578,-1045.13091,0.0001683,2]
[398526372,1765788642587,-1000.0,0.00016831,2]
[398526373,1765788642598,-1000.0,0.00016833,2]
[398526374,1765788642607,-500.0,0.00016836,2]
[398526375,1765788642617,-150.0,0.00016836,2]
[398526376,1765788642627,-500.0,0.00016836,2]
[398526377,1765788642637,-150.0,0.00016836,2]
[398526378,1765788642646,-500.0,0.00016836,2]
[398526379,1765788642657,-200.0,0.00016836,2]
[398526380,1765788642667,-150.0,0.00016836,2]
[398526381,1765788642677,-500.0,0.00016836,2]
[398526382,1765788642687,-407.15734767,0.00016836,2]
[398526383,1765788642696,-531.0,0.00016836,2]
[398526384,1765788642705,-500.0,0.00016836,2]
[398526385,1765788642714,-979.0,0.00016836,2]
[398526386,1765788642723,-1000.0,0.00016837,2]
[398526387,1765788642732,-1000.0,0.00016838,2]
[398526388,1765788642742,-1000.0,0.00016838,2]
[398526389,1765788642751,-1000.0,0.00016841,2]
[398526390,1765788642761,-1000.0,0.00016841,2]
[398526391,1765788642770,-150.0,0.00016842,2]
[398526392,1765788642780,-150.0,0.00016843,2]
[398526393,1765788642789,-300.0,0.00016844,2]
[398526394,1765788642798,-1000.0,0.00016845,2]
[398526395,1765788642808,-1000.0,0.00016847,2]
[398526396,1765788642818,-4107.39890063,0.00016849,2]
[398526397,1765788642827,-1000.0,0.00016857,2]
[398526398,1765788642836,-150.0,0.00016858,2]
[398526399,1765788642845,-1000.0,0.00016865,2]
[398526400,1765788642855,-150.0,0.00016868,2]
[398526401,1765788642865,-152.42,0.00016868,2]
[398526402,1765788642874,-151.67,0.00016868,2]
[398526403,1765788642883,-150.0,0.0001687,2]
[398526404,1765788642893,-1000.0,0.0001687,2]
[398526405,1765788642903,-1000.0,0.00016871,2]
[398526406,1765788642913,-150.0,0.00016874,2]
[398526407,1765788642922,-1000.0,0.00016881,2]
[398526408,1765788642931,-1000.0,0.00016883,2]
[398526409,1765788642941,-150.0,0.00016886,2]
[398526410,1765788642950,-151.18156087,0.00016887,2]
[398526411,1765788642961,-1000.0,0.00016887,2]
[398526412,1765788642972,-1000.0,0.00016889,2]
[398526413,1765788642981,-150.0,0.00016891,2]
[398526414,1765788642990,-1000.0,0.00016897,2]